Cogmind - Beta 9.6 *** ADVENTURER MODE // 2020.08.11 @ 07:05:29 Player: Sn@43 Result: Self-destructed Performance ------------- Evolutions (3) 1500 Regions Visited (7) 1400 Robots Destroyed (147) 735 Value Destroyed (4565) 4565 Prototype IDs (4) 80 Alien Tech Used (0) 0 Bonus (981) 981 TOTAL SCORE: 9261 Bonus ------- High Alert Combat Kills 301 Follower Combat Kills 35 Entered Garrisons 200 Used RIF Installer 500 Friendly Fire -55 Cogmind --------- Core Integrity 615/700 Matter 38/300 Energy 279/280 System Corruption 1% Temperature Cool (0) Movement Rolling (110) Ox2 Location -7/Factory Parts ------- > --- POWER (1) -------- Heavy Ion Engine > --- PROPULSION (2) --- Wheel Compact Wheel > --- UTILITY (8) ------ Large Storage Unit Large Storage Unit Large Storage Unit Advanced Visual Processing Unit Advanced Targeting Computer Armor Integrity Analyzer Hacking Suite > --- WEAPON (2) ------- Enhanced Autogun Improved Datajack > --- INVENTORY (22) --- Wheel Armored Wheel Cryofiber Web Improved Heat Sink Weight Redist. System Launcher Guidance Computer Transmission Jammer Hardened Medium Armor Plating Relay Coupler [NC] (34) Relay Coupler [NC] (28) Relay Coupler [Grunt] (35) Relay Coupler [Grunt] (34) Relay Coupler [Grunt] (38) Relay Coupler [Grunt] (38) Lightning Gun Improved EM Pulse Cannon Gauss Cannon Improved Grenade Launcher Peak State ------------ > --- POWER ------------ Heavy Ion Engine > --- PROPULSION ------- Improved Treads Armored Wheel > --- UTILITY ---------- Improved Heat Sink Large Storage Unit Large Storage Unit Advanced Visual Processing Unit Improved Targeting Computer Armor Integrity Analyzer Hardened Medium Armor Plating Hacking Suite > --- WEAPON ----------- Enhanced Autogun Gauss Cannon > --- INVENTORY -------- Large Storage Unit Launcher Guidance Computer Relay Coupler [NC] Relay Coupler [NC] Relay Coupler [NC] Relay Coupler [Grunt] Relay Coupler [Grunt] Relay Coupler [Grunt] Relay Coupler [Grunt] Heavy EM Pulse Gun EM Pulse Cannon Plasma Cannon Improved Grenade Launcher [Rating: 36] Favorites ----------- Power Heavy Ion Engine Engine Heavy Ion Engine Propulsion Compact Wheel Treads Light Treads Wheel Compact Wheel Utility Large Storage Unit Device Improved Heat Sink Storage Large Storage Unit Processor Improved Targeting Computer Hackware Hacking Suite Protection Hardened Medium Armor Plating Weapon Assault Rifle Energy Gun Heavy EM Pulse Gun Energy Cannon Plasma Cannon Ballistic Gun Assault Rifle Ballistic Cannon Gauss Cannon Launcher EMP Blaster Special Melee Weapon Improved Datajack Build | -11 -10 -10 -9 -9 -8 -8 -7 ------- Run | Scr Mat Min Mat Min Mat Gar Fac Slots Evolved 6 | . . . 2 . 2 . 2 Power . | . . . . . . . . Propulsion . | . . . . . . . . Utility 6 | . . . 2 . 2 . 2 Weapon . | . . . . . . . . Parts Attached 105 | 7 5 6 41 9 12 15 10 Power 11 | 1 . 1 7 1 . 1 . Engine 11 | 1 . 1 7 1 . 1 . Core . | . . . . . . . . Reactor . | . . . . . . . . Propulsion 18 | 2 . . 10 2 . 1 3 Treads 2 | . . . . . . 1 1 Leg . | . . . . . . . . Wheel 16 | 2 . . 10 2 . . 2 Hover . | . . . . . . . . Flight . | . . . . . . . . Utility 23 | 2 3 . 7 1 4 . 6 Device 5 | 1 1 . . . 1 . 2 Storage 8 | 1 2 . 4 . . . 1 Processor 6 | . . . 3 1 1 . 1 Hackware 2 | . . . . . 1 . 1 Protection 2 | . . . . . 1 . 1 Artifact . | . . . . . . . . Weapon 53 | 2 2 5 17 5 8 13 1 Energy Gun 2 | . . . . . . 2 . Energy Cannon 2 | . . . . . 2 . . Ballistic Gun 32 | 2 1 2 16 3 3 5 . Ballistic Cannon 2 | . . . . . 1 1 . Launcher 14 | . 1 3 1 2 2 5 . Special Weapon . | . . . . . . . . Impact Weapon . | . . . . . . . . Slashing Weapon . | . . . . . . . . Piercing Weapon . | . . . . . . . . Special Melee Weapon 1 | . . . . . . . 1 Unidentified Prototypes 4 | . . . 2 . 1 1 . Parts Lost 16 | . . 2 6 2 1 4 1 Power 3 | . . 1 1 . . 1 . Propulsion 5 | . . . 2 1 1 1 . Utility 1 | . . . . . . . 1 Weapon 7 | . . 1 3 1 . 2 . Highest Loss Streak 5 | . . 2 5 1 1 3 1 Average Slot Usage (%) 98 | . 99 98 97 99 98 96 99 Engine 10 | . 14 12 10 11 9 7 7 Treads 1 | . . . . . . 8 1 Wheel 18 | . 28 28 21 21 16 9 12 Device 1 | . 5 . . . 4 . 6 Storage 20 | . 22 28 21 22 18 18 19 Processor 19 | . . . 21 22 22 27 23 Hackware 3 | . . . . . 9 9 7 Ballistic Gun 16 | . 22 20 21 21 6 6 7 Ballistic Cannon 1 | . . . . . 6 2 6 Launcher 2 | . 5 7 . . . 5 . Naked Turns . | . . . . . . . . Heaviest Build 66 | 11 40 42 46 48 57 52 66 Greatest Support 32 | 26 26 26 32 32 28 12 32 Greatest Overweight (x) 4 | . 1 1 2 2 4 4 4 Average Overweight (x) 1 | . . 1 1 1 1 3 2 Largest Inventory Capacity 22 | 6 16 16 16 16 16 16 22 Average Capacity 15 | 5 12 16 15 16 16 16 19 Most Carried 18 | 3 8 9 14 16 15 16 18 Average Carried 11 | 1 6 7 10 13 12 13 15 Final Capacity 22 | 6 16 16 16 16 16 16 22 Final Carried 18 | 3 8 7 11 16 14 15 18 Class Distribution -------------------- 65% | Mutant 29% | Hacker-Mutant 4% | Hauler-Mutant Dominant Class ---------------- Mutant | -10/Materials Mutant | -10/Mines Mutant | -9/Materials Mutant | -9/Mines Hacker-Mutant | -8/Materials Hacker-Mutant | -8/Garrison Hauler-Mutant | -7/Factory Resources | -11 -10 -10 -9 -9 -8 -8 -7 ----------- Run | Scr Mat Min Mat Min Mat Gar Fac Matter Collected 2865 | 285 218 39 1289 253 316 321 144 Remotely . | . . . . . . . . Salvage Created 5173 | 79 312 138 2534 387 590 975 158 Parts 355 | 5 49 15 166 17 39 54 10 Haulers Intercepted 11 | . 2 . 6 . 3 . . Recyclers Shooed 10 | . 2 . 8 . . . . Parts Field Recycled . | . . . . . . . . Retrieved Matter . | . . . . . . . . Parts Self-Destructed . | . . . . . . . . Prevented . | . . . . . . . . Kills | -11 -10 -10 -9 -9 -8 -8 -7 ------- Run | Scr Mat Min Mat Min Mat Gar Fac Combat Hostiles Destroyed 95 | . 9 6 41 10 5 23 1 Guns 59 | . 7 . 38 7 . 7 . Cannons 7 | . . . . . 4 2 1 AOE 28 | . 2 6 3 3 1 13 . Classes Destroyed 12 | 2 4 2 3 . 1 . . Worker 7 | . . 1 2 . 3 . 1 Builder 10 | . 3 1 5 . 1 . . Tunneler 1 | 1 . . . . . . . Hauler 11 | . 2 . 6 . 3 . . Recycler 10 | 1 . . 7 . 1 . 1 Operator 3 | . . . 2 . . . 1 Watcher 10 | . 2 . 5 . 3 . . Swarmer 34 | . 9 3 15 2 . 5 . Grunt 39 | . . 3 15 6 1 14 . Brawler 1 | . . . 1 . . . . Sentry 19 | . . . 10 2 2 4 1 Hunter 2 | . . . . . 2 . . Best Kill Streak 10 | 1 6 6 7 3 6 10 2 Combat Bots Only 10 | . 3 5 5 3 2 10 1 Max Kills in Single Turn 3 | 1 3 3 2 1 3 3 1 Gunslinging 1 | . 1 . . . . . . Exploded 3 | . 2 2 2 1 1 3 . Melee . | . . . . . . . . Uniques/NPCs Destroyed . | . . . . . . . . Combat | -11 -10 -10 -9 -9 -8 -8 -7 -------- Run | Scr Mat Min Mat Min Mat Gar Fac Damage Taken 3514 | . 177 236 1308 501 283 659 350 Core 695 | . 44 51 260 84 47 124 85 Absorbed by Shields . | . . . . . . . . Core Remaining (%) 61 | 100 . 62 . 14 . 68 . Volleys Fired 323 | 4 36 6 148 27 26 59 17 Largest 2 | 2 2 1 2 2 2 2 2 Hottest 128 | 40 40 30 46 63 128 103 73 Shots Fired 559 | 8 60 6 276 47 52 76 34 Gun 450 | 8 59 . 274 38 23 31 17 Cannon 57 | . . . . . 25 15 17 Launcher 52 | . 1 6 2 9 4 30 . Special . | . . . . . . . . Kinetic 495 | 8 59 . 274 38 44 38 34 Thermal 5 | . . . . . 4 1 . Explosive 19 | . 1 6 2 3 2 5 . Electromagnetic 40 | . . . . 6 2 32 . Robot Hit Streak 40 | 5 6 1 40 22 36 22 12 Robot Miss Streak 4 | 1 2 . 3 2 4 1 1 Penetration Max . | . . . . . . . . Secondary Targets 6 | . 1 . 4 1 . . . Max Gunslinging Chain 1 | . 1 . 1 1 . . . Shots Hit Robots 408 | 5 31 1 220 42 37 40 32 Core Hits 238 | 3 20 14 104 20 24 45 8 Critical Hits 10 | . . . 2 . 3 4 1 Critical Kills 2 | . . . . . 1 1 . Critical Parts Destroyed 8 | . . . 2 . 2 3 1 Melee Attacks 5 | . . . . . . . 5 Impact . | . . . . . . . . Slashing . | . . . . . . . . Piercing . | . . . . . . . . Sneak Attacks 4 | . . . . . . . 4 Combat Hostiles . | . . . . . . . . Follow-up Attacks . | . . . . . . . . Damage Inflicted 8456 | 60 608 383 3126 816 1015 1916 532 Guns 4572 | 60 390 . 2814 536 268 270 234 Cannons 967 | . . . . . 448 221 298 Explosions 2912 | . 213 383 312 280 299 1425 . Melee . | . . . . . . . . Ramming 5 | . 5 . . . . . . Kinetic 5387 | 60 390 . 2814 536 606 449 532 Thermal 280 | . 41 . . 16 158 65 . Explosive 1454 | . 109 383 312 79 140 431 . Electromagnetic 1330 | . 63 . . 185 111 971 . Impact . | . . . . . . . . Slashing . | . . . . . . . . Piercing . | . . . . . . . . Highest Corruption 1 | . 1 1 1 1 . 1 1 Average Corruption 1 | . 1 1 1 1 . 1 1 Corruption Purged . | . . . . . . . . Effects 18 | . 1 . 3 8 . 5 1 Message Errors 9 | . 1 . 2 4 . 2 . Energy Discharges 1 | . . . . . . 1 . Data Loss (minor) 6 | . . . . 3 . 2 1 Targeting Errors 1 | . . . 1 . . . . Weapon Failures 1 | . . . . 1 . . . Overload Shots . | . . . . . . . . Overflow Damage 88 | . . . 12 . 34 42 . Projectiles 21 | . . . . . . 21 . Explosions 67 | . . . 12 . 34 21 . Melee . | . . . . . . . . Knockbacks 3 | . . . . . 2 1 . Impact . | . . . . . . . . Kinetic 3 | . . . . . 2 1 . Secondary . | . . . . . . . . Self-Inflicted Damage 255 | . 2 2 . 15 36 200 . Shots 15 | . . 1 . 3 2 9 . Rammed 1 | . 1 . . . . . . Targets Rammed 1 | . 1 . . . . . . Kicked . | . . . . . . . . Crushed . | . . . . . . . . Highest Temperature 99 | . . 10 6 18 99 61 32 Average Temperature 17 | . . 10 3 3 29 18 13 Received Heat Transfer 1271 | . . 95 573 261 54 243 45 Siege Activations . | . . . . . . . . Robots Corrupted 1 | . . . . . . 1 . Combat Hostiles 1 | . . . . . . 1 . Parts Fried 5 | . . . . 1 . 4 . Impact Corruptions . | . . . . . . . . Robots Melted . | . . . . . . . . Combat Hostiles . | . . . . . . . . Parts Melted . | . . . . . . . . Heat Transferred 500 | . 100 . . 50 250 100 . Parts Sabotaged . | . . . . . . . . Parts Stolen . | . . . . . . . . Parts Stripped . | . . . . . . . . Power Chain Reactions 8 | . 2 . . 2 1 3 . Missiles Intercepted . | . . . . . . . . Alert | -11 -10 -10 -9 -9 -8 -8 -7 ------- Run | Scr Mat Min Mat Min Mat Gar Fac Peak Influence 1242 | 10 197 144 359 247 350 1242 620 Average Influence 291 | 3 67 78 142 100 141 786 543 Maximum Alert Level 4 | . . . 1 1 1 4 2 Low Security (%) 54 | 100 100 100 64 83 67 2 . Level 1 18 | . . . 35 16 32 9 . Level 2 14 | . . . . . . 29 100 Level 3 10 | . . . . . . 48 . Level 4 2 | . . . . . . 10 . Level 5 . | . . . . . . . . High Security . | . . . . . . . . Max Security . | . . . . . . . . Squads Dispatched 10 | . . . 6 . 3 . 1 Investigation 3 | . . . 3 . . . . Extermination . | . . . . . . . . Reinforcement 5 | . . . 3 . 1 . 1 Assault . | . . . . . . . . Garrison 2 | . . . . . 2 . . Intercept . | . . . . . . . . Construction Impeded 1 | . . . 1 . . . . Haulers Reinforced . | . . . . . . . . Stealth | -11 -10 -10 -9 -9 -8 -8 -7 --------- Run | Scr Mat Min Mat Min Mat Gar Fac Distress Signals 7 | . 1 1 1 . 3 . 1 Communications Jammed . | . . . . . . . . Distress Signals . | . . . . . . . . Times Spotted 154 | . 15 14 57 12 14 35 7 Peak Tracking Total 11 | . 5 9 6 5 5 11 3 Tactical Retreats 13 | . . . 2 1 . 9 1 Traps | -11 -10 -10 -9 -9 -8 -8 -7 ------- Run | Scr Mat Min Mat Min Mat Gar Fac Traps Triggered 25 | . 1 . 8 . . 14 2 Indirectly 4 | . . . . . . 4 . Trap Hack Attempts . | . . . . . . . . Triggered . | . . . . . . . . Disarmed . | . . . . . . . . Reprogrammed . | . . . . . . . . Reused . | . . . . . . . . Traps Extracted . | . . . . . . . . Installed . | . . . . . . . . Triggered . | . . . . . . . . Machines | -11 -10 -10 -9 -9 -8 -8 -7 ---------- Run | Scr Mat Min Mat Min Mat Gar Fac Machines Disabled 12 | . 2 . . . 2 8 . Max in Single Turn 2 | . 1 . . . 1 2 . Garrison Relay 5 | . . . . . . 5 . Phase Generator 1 | . . . . . . 1 . Machines Sabotaged . | . . . . . . . . Garrisons Compromised . | . . . . . . . . Overloaded Fab Kills . | . . . . . . . . Fab Network Shutdowns . | . . . . . . . . Hacking | -11 -10 -10 -9 -9 -8 -8 -7 --------- Run | Scr Mat Min Mat Min Mat Gar Fac Machines Accessed 25 | . 8 . 14 1 1 . 1 Terminals 18 | . 7 . 10 . . . 1 Fabricators . | . . . . . . . . Repair Stations 1 | . . . 1 . . . . Recycling Units 2 | . 1 . 1 . . . . Scanalyzers 2 | . . . 2 . . . . Garrison Access 1 | . . . . . 1 . . Total Hacks 83 | . 23 . 56 1 1 . 2 Successful 57 | . 14 . 40 1 1 . 1 Failed 26 | . 9 . 16 . . . 1 Catastrophic 2 | . 1 . 1 . . . . Database Lockouts . | . . . . . . . . Manual 60 | . 25 . 33 . . . 2 Terminals 50 | . 20 . 28 . . . 2 Fabricators . | . . . . . . . . Repair Stations 18 | . . . 18 . . . . Recycling Units 6 | . 3 . 3 . . . . Scanalyzers 7 | . . . 7 . . . . Garrison Access 1 | . . . . . 1 . . Terminal Hacks 10 | . 4 . 5 1 . . . Robot Analysis 4 | . 2 . 2 . . . . Open Door 1 | . . . . 1 . . . Branch Access Points 1 | . 1 . . . . . . Unreport Threat 4 | . 1 . 3 . . . . Fabricator Hacks . | . . . . . . . . Repair Station Hacks 17 | . . . 17 . . . . Scan Component 9 | . . . 9 . . . . Repair 8 | . . . 8 . . . . Recycling Unit Hacks . | . . . . . . . . Scanalyzer 6 | . . . 6 . . . . Insert Component 3 | . . . 3 . . . . Analyze 3 | . . . 3 . . . . Garrison Access Hacks 1 | . . . . . 1 . . Unlock Access 1 | . . . . . 1 . . Unauthorized Hacks 23 | . 10 . 12 . . . 1 Terminals 17 | . 7 . 9 . . . 1 Assimilate 1 | . . . 1 . . . . Botnet 16 | . 7 . 8 . . . 1 Fabricators . | . . . . . . . . Repair Stations . | . . . . . . . . Recycling Units 6 | . 3 . 3 . . . . Monitor 2 | . 1 . 1 . . . . Reject 2 | . 1 . 1 . . . . Recyclers 2 | . 1 . 1 . . . . Scanalyzers . | . . . . . . . . Garrison Access . | . . . . . . . . Data Cores Recovered . | . . . . . . . . Used . | . . . . . . . . Hacking Detections 24 | . 9 . 14 . . . 1 Full Trace Events 1 | . . . 1 . . . . Feedback Events . | . . . . . . . . Feedback Blocked . | . . . . . . . . Robot Schematics Acquired . | . . . . . . . . Robots Built . | . . . . . . . . Matter . | . . . . . . . . Time . | . . . . . . . . Total Robot Build Rating . | . . . . . . . . Part Schematics Acquired 3 | . . . 3 . . . . Parts Built . | . . . . . . . . Matter . | . . . . . . . . Time . | . . . . . . . . Total Part Build Rating . | . . . . . . . . Parts Repaired 8 | . . . 8 . . . . Time 220 | . . . 220 . . . . Parts Recycled . | . . . . . . . . Recycled Matter . | . . . . . . . . Retrieved Matter . | . . . . . . . . Retrieved Components . | . . . . . . . . Parts Scanalyzed 3 | . . . 3 . . . . Part Schematics Acquired 3 | . . . 3 . . . . Parts Damaged . | . . . . . . . . Bothacking | -11 -10 -10 -9 -9 -8 -8 -7 ------------ Run | Scr Mat Min Mat Min Mat Gar Fac Used RIF Installer 1 | . . . . . . 1 . Robots Hacked 4 | . . . . . . . 4 Non-combat 3 | . . . . . . . 3 Combat 1 | . . . . . . . 1 Robot Hacks Applied 4 | . . . . . . . 4 parse_system 1 | . . . . . . . 1 deconstruct_machine 1 | . . . . . . . 1 ignore_repairs 1 | . . . . . . . 1 overload_power 1 | . . . . . . . 1 Relay Couplers Released 17 | . . . . . . 17 . Machine Destruction 17 | . . . . . . 17 . Attached 1 | . . . . . . . 1 Robots Rewired . | . . . . . . . . Allies Hacked . | . . . . . . . . Hacks Repelled . | . . . . . . . . Allies | -11 -10 -10 -9 -9 -8 -8 -7 -------- Run | Scr Mat Min Mat Min Mat Gar Fac Total Allies 3 | . . . . 3 . . . Largest Group 3 | . . . . 3 . . . Highest-Rated Group 40 | . . . . 40 . . . Highest-Rated Ally 16 | . . . . 16 . . . Total Orders 2 | . . . . 2 . . . STAY 1 | . . . . 1 . . . FOLLOW 1 | . . . . 1 . . . Ally Attacks 15 | . . . . 15 . . . Total Damage 159 | . . . . 159 . . . Kills 5 | . . . . 5 . . . Allies Corrupted . | . . . . . . . . Allies Melted . | . . . . . . . . Intel | -11 -10 -10 -9 -9 -8 -8 -7 ------- Run | Scr Mat Min Mat Min Mat Gar Fac Robot Analysis Total 4 | . 2 . 2 . . . . Derelict Logs Recovered 1 | . . . . 1 . . . Drone Launches . | . . . . . . . . Drone Recoveries . | . . . . . . . . Exploration | -11 -10 -10 -9 -9 -8 -8 -7 ------------- Run | Scr Mat Min Mat Min Mat Gar Fac Turns Passed 6938 | 67 924 117 2362 1072 364 1448 584 Spaces Moved 4828 | 49 843 91 1489 860 225 866 405 Core 1 | 1 . . . . . . . Treads 50 | . . . . . . . 50 Legs . | . . . . . . . . Wheels 4777 | 48 843 91 1489 860 225 866 355 Hover . | . . . . . . . . Flight . | . . . . . . . . Fastest Speed 50 | 50 90 100 100 105 105 110 100 Average Speed 109 | 86 95 100 104 108 113 127 121 Slowest Speed 200 | 90 100 100 120 120 130 130 200 Overloaded Moves . | . . . . . . . . Propulsion Burnouts . | . . . . . . . . Robots Hopped . | . . . . . . . . Cave-ins Triggered . | . . . . . . . . Exploration Rate (%) 56 | 3 97 32 98 99 26 86 12 Regions Visited 7 Branch Regions 2 Pre-discovered Areas . | . . . . . . . . Known Exits Taken 3 | . 1 . . 1 1 . . Unknown Exits Taken 3 | 1 . 1 1 . . . . Scrap Searched 2 | . . . . 2 . . . Spaces Dug . | . . . . . . . . Terrain Destroyed 220 | . 6 49 14 17 36 98 . Melee . | . . . . . . . . Projectile 10 | . . . . . 8 2 . AOE 210 | . 6 49 14 17 28 96 . Actions | -11 -10 -10 -9 -9 -8 -8 -7 --------- Run | Scr Mat Min Mat Min Mat Gar Fac Total 5933 | 62 900 110 2020 951 286 1139 465 Wait 438 | . 6 6 285 41 3 90 7 Move 4820 | 48 842 90 1488 859 224 864 405 Hop . | . . . . . . . . Pick Up 74 | 3 5 . 32 9 7 12 6 Fast Attach 32 | 7 3 . 13 1 2 1 5 Attach 40 | . . 3 17 5 5 8 2 Detach 19 | . 1 2 5 2 5 2 2 Swap 33 | . 2 3 11 3 5 6 3 Drop 51 | . 4 . 21 4 9 8 5 Fire 323 | 4 36 6 148 27 26 59 17 Melee 5 | . . . . . . . 5 Ram 1 | . 1 . . . . . . Kick . | . . . . . . . . Crush . | . . . . . . . . Escape Stasis 97 | . . . . . . 89 8 Rewire . | . . . . . . . . Trap . | . . . . . . . . Miscellaneous . | . . . . . . . . Route ------- -11/Scrapyard -10/Materials (discovered 4 exits: *Mat x3 / *Min) -10/Mines -9/Materials (discovered 6 exits: *Mat x3 / *Min / [*Sto x2]) -9/Mines (discovered 2 exits: *Mat x2) -8/Materials (discovered 3 exits: *Fac x2 / Gar) -8/Garrison (discovered 3 exits: *Fac x3) -7/Factory History --------- Turn | Location | Event 26 | -11/Scrapyard | Discovered new exit (range 15) 68 | -11/Scrapyard | Entered Materials 93 | -10/Materials | Identified exit to Mines 316 | -10/Materials | Build established: Mutant 562 | -10/Materials | Discovered new exit (range 10) 750 | -10/Materials | Discovered new exit (range 5) 909 | -10/Materials | Discovered new exit (range 16) 992 | -10/Materials | Entered Mines 1076 | -10/Mines | Assembled infested the area 1095 | -10/Mines | Discovered new exit (range 13) 1109 | -10/Mines | Entered Materials 1109 | -9/Materials | Evolved 2 slots: Utility x2 1469 | -9/Materials | Repaired Wheel 1496 | -9/Materials | Repaired Com. Wheel 1523 | -9/Materials | Repaired Com. Wheel 1556 | -9/Materials | Repaired Imp. Ion Engine 1583 | -9/Materials | Repaired Grenade Launcher 1616 | -9/Materials | Repaired Hvy. Assault Rifle 1643 | -9/Materials | Repaired Lrg. Storage Unit 1676 | -9/Materials | Repaired Lrg. Storage Unit 2059 | -9/Materials | Lost 5 parts (1p2n2w) 2354 | -9/Materials | Discovered new exit (range 11) 2539 | -9/Materials | Discovered new exit (range 12) 2600 | -9/Materials | Discovered new exit (range 16) 2747 | -9/Materials | Core integrity fell below 50% 2918 | -9/Materials | Discovered new exit (range 18) 3171 | -9/Materials | Discovered new exit (range 15) 3345 | -9/Materials | Discovered new exit (range 12) 3471 | -9/Materials | Entered Mines 3581 | -9/Mines | Discovered new exit (range 7) 3681 | -9/Mines | Core integrity fell below 20% 3700 | -9/Mines | Identified exit to Materials 3937 | -9/Mines | Assisted by bots powering up and referring to "LRC-V3" 4242 | -9/Mines | Met a Derelict who couldn't figure out how to use a Trap Extractor 4543 | -9/Mines | Entered Materials 4543 | -8/Materials | Evolved 2 slots: Utility x2 4745 | -8/Materials | Discovered new exit (range 20) 4784 | -8/Materials | Garrison activated, responded to threat 4872 | -8/Materials | Discovered new exit (range 20) 4876 | -8/Materials | Build established: Hacker-Mutant 4903 | -8/Materials | Identified exit to Garrison 4907 | -8/Materials | Entered Garrison 4940 | -8/Garrison | Triggered checkpoint 5056 | -8/Garrison | Triggered checkpoint 5065 | -8/Garrison | Triggered checkpoint 5113 | -8/Garrison | Destroyed 10 combat bots 5317 | -8/Garrison | Discovered new exit (range 17) 5362 | -8/Garrison | Triggered checkpoint 5486 | -8/Garrison | Triggered checkpoint 5496 | -8/Garrison | Triggered checkpoint 5543 | -8/Garrison | Discovered new exit (range 8) 5564 | -8/Garrison | Installed Relay Interface Framework 5620 | -8/Garrison | Triggered checkpoint 5678 | -8/Garrison | Lost 3 parts (1p2w) 5701 | -8/Garrison | Garrison Relay disabled 5821 | -8/Garrison | Garrison Relay disabled 5928 | -8/Garrison | Garrison Relay disabled 6034 | -8/Garrison | Phase Generator disabled 6152 | -8/Garrison | Triggered checkpoint 6202 | -8/Garrison | Garrison Relay disabled 6228 | -8/Garrison | Triggered checkpoint 6242 | -8/Garrison | Discovered new exit (range 16) 6275 | -8/Garrison | Triggered checkpoint 6296 | -8/Garrison | Garrison Relay disabled 6355 | -8/Garrison | Entered Factory 6355 | -7/Factory | Evolved 2 slots: Utility x2 6939 | -7/Factory | Self-destructed Last Messages --------------- 06929_ Slug penetrates Wall. 06930_ U-05 Engineer lays Concrete. 06930_ K-01 Serf collects debris. 06931_ U-05 Engineer lays Concrete. 06931_ U-05 Engineer builds a Wall. 06931_ U-05 Engineer lays Concrete. 06931_ W-25 Informer distress signal alerts nearby ally. 06932_ Penetrated by Slug. 06935_ U-05 Engineer Lgt. Ion Engine critical detonation. 06935_ K-01 Serf destroyed. 06935_ U-05 Engineer lays Concrete. 06936_ U-05 Engineer builds a Wall. 06936_ K-01 Serf collects debris. 06937_ U-05 Engineer lays Concrete. 06938_ Jacked H-55 Commando... >>parse_system Reading system data... 06938_ U-05 Engineer lays Concrete. 06939_ Relay Coupler [NC] destroyed. 06939_ U-05 Engineer lays Concrete. Map ----- +----------------------------------------------------+ | ??????????????????# "Y" #? #??????????????????? | | ??????????????????# " " ## ####???????????????? | | ??????????????????# # #???????????????? | | ??????????????????# # #???????????????? | | ??????????????????# """ + #???????????????? | | ??????????????????# """ # #???????????????? | | ??????????????????# """ # % ????????????????? | | ???????????????#### ;## #?????????????????? | | ??????????????##"";"" ;;;"" #?????????????????? | | ??????????????# ; " #?????????????????? | | ??????????????# ; u " #?????????????????? | | ??????######### ; " #?????????????????? | | #######"""T"""##; " #?????????????????? | | ; " #?????????????????? | | # #?????????????????? | | ![! # #?????????????????? | | !! u / #?????????????????? | | ### ! [! ; # #?????????????????? | | ??# ; # #?????????????????? | | ??# """"""""" # #?#?????????????????? | | ??# # %* # #?????????????????? | | ??# " "" ###;;#;;#;#### ########### ??? | | ??+ "R"" u= w s ??? | | ??# """ = k = ??? | | ??# ??? | | ??# h!@ ??? | | ??#^ ! #####+##### r ??? | | ??# #??? ???####+########## ???? | | ??#^^/= ##?? ?????? ???????? ???? | | ??# /= "#? ????? ?????# ????? | | ### == "#? ?????" "?? #????# ????? | | ^ "## = ????" "???#????# ? ?????? | | """ T## ???"" "????????# ????????? | | """ "#########???" ????????# ????????? | | F" "#???????????" ????????# #????????? | | "" "#???????????? ????????# #????????? | | #######????############## #????????? | | + # #????????? | | #" ""###########??# # #????????? | | #"R""#????????????# "" """ # ########## | | #""" #????????????# "" """ # # | | ######????????????# """ """ # # | | #?????????????????# """ # # | | #?????#####???????# """ # # | | ####### ######### # # | | ! + # # | | ######### ######### = + + | | #???????## ##???????# # # | | #????????# #????????# # # | | #????????# #????????############## # | +----------------------------------------------------+ Best States ------------- Heat Dissipation 48 Energy Generation 16 Energy Capacity 290 Matter Stores 300 Matter Capacity 300 Sight Range 20 Terrain Scan Range 16 Terrain Scan Density 10 Additional Mass Support 6 Armor Coverage 225 Resistance: KI 20 Resistance: TH 20 Resistance: EX 20 Resistance: EM 20 Resistance: I 20 Resistance: S 20 Resistance: P 20 Evasion (%) 44 Targeting Accuracy 8 Armor Integrity Analysis 33 Recoil Reduction 1 Offensive Hacking 20 Item Schematics ----------------- Hacking Suite | -9/Materials | Scanalyzed Arm. Wheel | -9/Materials | Scanalyzed Wheel | -9/Materials | Scanalyzed Robot Schematics ------------------ None Fabricated ------------ Nothing Alien Tech Used ----------------- None Achievements -------------- None Challenges ------------ None Game ------ Seed InsulatedSmallDesublimator Manual? 0 Play Time 01:41:38 Cumulative 26.9 hours Start 2020.08.10 @ 19:05:00 End 2020.08.11 @ 07:05:29 Sessions 3 Manual Loads 0 Difficulty Adventurer Special Mode None Game No. 54 Rogue 46 Adventurer 8 Explorer 0 Win Type - Total 0 Types 0/0/0/0/0/0/0 Lore% 22 Gallery% 21 Achievement% 20 Wizard Run 0 Options --------- ASCII 0 Keyboard 0 Movement Mouse Keybinds 0 Fullscreen 2 Font 18/SmallcapsGlow Map View 76x50 Tactical HUD 1 Map Filters NONE Filters NONE Steam 1 RUN: c7ec79cc-42d8-4f05-9f31-406fbe8e4a2f